Workbook

Sheet Задание

Sheet Диаграмма
F4: Прокат заготовок в тоннах
B6: янв | C6: фев | D6: мар | E6: апр | F6: май | G6: июн | H6: июл | I6: авг | J6: сен | K6: окт | L6: ноя | M6: дек
A7: 2020 | B7: =Данные!B35 -> 2.2 | C7: =Данные!E35 -> 1.1 | D7: =Данные!H35 -> 5.891 | E7: =Данные!K35 -> 8.7 | F7: =Данные!N35 -> 20.919 | G7: =Данные!Q35 -> 26.504 | H7: =Данные!T35 -> 33.801 | I7: =Данные!W35 -> 19.465 | J7: =Данные!Z35 -> 25.371 | K7: =Данные!AC35 -> 5.162 | L7: =Данные!AF35 -> 11.237 | M7: =Данные!AI35 -> 5.816
A8: 2021 | B8: =Данные!C35 -> 3.3 | C8: =Данные!F35 -> 8.9 | D8: 15 | E8: 20 | F8: 40 | G8: 50 | H8: 55 | I8: 45 | J8: 32 | K8: 31 | L8: 25 | M8: 15
A9: 2022 | B9: =Данные!D35 -> 5.5 | C9: =Данные!G35 -> 9.9 | D9: 18 | E9: 25 | F9: 48 | G9: 55 | H9: 55 | I9: 44 | J9: 35 | K9: 40 | L9: 28 | M9: 20
A10: =IF(B10=B7,A7,IF(B10=B8,A8,IF(B10=B9,A9,2011))) -> 2022 | B10: 5.5 | C10: 9.9 | D10: 18 | E10: 25 | F10: 48 | G10: 55 | H10: 55 | I10: 44 | J10: 35 | K10: 40 | L10: 28 | M10: 20

Sheet Данные
B1: Январь | E1: Февраль | H1: Март | K1: Апрель | N1: Май | Q1: Июнь | T1: Июль | W1: Август | Z1: Сентябрь | AC1: Октябрь | AF1: Ноябрь | AI1: Декабрь
A2: Дата | B2: 2020 | C2: 2021 | D2: 2022 | E2: 2020 | F2: 2021 | G2: 2022 | H2: 2020 | I2: 2021 | J2: 2022 | K2: 2020 | L2: 2021 | M2: 2022 | N2: 2020 | O2: 2021 | P2: 2022 | Q2: 2020 | R2: 2021 | S2: 2022 | T2: 2020 | U2: 2021 | V2: 2022 | W2: 2020 | X2: 2021 | Y2: 2022 | Z2: 2020 | AA2: 2021 | AB2: 2022 | AC2: 2020 | AD2: 2021 | AE2: 2022 | AF2: 2020 | AG2: 2021 | AH2: 2022 | AI2: 2020 | AJ2: 2021 | AK2: 2022
A3: 1
A4: 2
A5: 3
A6: 4
A7: 5
A8: 6
A9: 7
A10: 8
A11: 9
A12: 10
A13: 11
A14: 12
A15: 13
A16: 14
A17: 15
A18: 16
A19: 17
A20: 18
A21: 19
A22: 20
A23: 21
A24: 22
A25: 23
A26: 24
A27: 25
A28: 26 | F28: 8.9
A29: 27
A30: 28 | E30: 1.1 | G30: 9.9
A31: 29 | C31: 3.3 | N31: 20.919
A32: 30 | K32: 8.7 | Q32: 26.504 | Z32: 25.371 | AC32: 5.162 | AF32: 11.237
A33: 31 | B33: 2.2 | D33: 5.5 | H33: 5.891 | T33: 33.801 | W33: 19.465 | AI33: 5.816
A35: ИТОГО | B35: =SUM(B3:B33) -> 2.2 | C35: =SUM(C3:C33) -> 3.3 | D35: =SUM(D3:D33) -> 5.5 | E35: =SUM(E3:E31) -> 1.1 | F35: =SUM(F3:F30) -> 8.9 | G35: =SUM(G3:G30) -> 9.9 | H35: =SUM(H3:H33) -> 5.891 | I35: =SUM(I3:I33) -> 0 | J35: =SUM(J3:J33) -> 0 | K35: =SUM(K3:K32) -> 8.7 | L35: =SUM(L3:L32) -> 0 | M35: =SUM(M3:M32) -> 0 | N35: =SUM(N3:N33) -> 20.919 | O35: =SUM(O3:O33) -> 0 | P35: =SUM(P3:P33) -> 0 | Q35: =SUM(Q3:Q32) -> 26.504 | R35: =SUM(R3:R32) -> 0 | S35: =SUM(S3:S32) -> 0 | T35: =SUM(T3:T33) -> 33.801 | U35: 0 | V35: 0 | W35: 19.465 | X35: 0 | Y35: 0 | Z35: =SUM(Z3:Z32) -> 25.371 | AA35: =SUM(AA3:AA32) -> 0 | AB35: =SUM(AB3:AB32) -> 0 | AC35: =SUM(AC3:AC33) -> 5.162 | AD35: =SUM(AD3:AD33) -> 0 | AE35: =SUM(AE3:AE33) -> 0 | AF35: =SUM(AF3:AF32) -> 11.237 | AG35: =SUM(AG3:AG32) -> 0 | AH35: =SUM(AH3:AH32) -> 0 | AI35: =SUM(AI3:AI33) -> 5.816 | AJ35: =SUM(AJ3:AJ33) -> 0 | AK35: =SUM(AK3:AK33) -> 0
C37: выходные
